bitfinex-derivatives/quotes_ETHF0:USTF0_20241008
["timestamp","ask_amount","ask_price","bid_price","bid_amount"]
[1728371015035,1.48,2436.6,2436.5,4.13263]
[1728371032638,1.48,2436.6,2436.5,3.2078]
[1728371032841,5.85083,2436.6,2436.5,3.2078]
[1728371033344,5.85083,2436.6,2436.2,0.88217]
[1728371033644,1.48,2436.3,2436.2,0.6153]
[1728371034139,1.48,2436.3,2436.2,0.88217]
[1728371034342,1.48,2436.3,2436.2,0.6153]
[1728371036342,1.48,2436.3,2436.2,0.88217]
[1728371036746,1.48,2436.3,2436.2,0.6153]
[1728371036941,1.946,2436.5,2436.2,4.7201]
[1728371037142,1.48,2436.7,2436.6,0.26683]
[1728371037347,1.48,2436.7,2436.5,2.18823]
[1728371037552,1.48,2436.7,2436.6,0.26683]
[1728371037744,1.48,2436.7,2436.5,2.18823]
[1728371040545,0.6158,2436.8,2436.7,0.26682]
[1728371040740,2.0958,2436.8,2436.7,3.47462]
[1728371041053,2.0958,2436.8,2436.7,3.2078]
[1728371042649,2.0958,2436.8,2436.7,3.47462]
[1728371043152,2.0958,2436.8,2436.7,3.2078]
[1728371046345,0.81211095,2437.0,2436.7,3.2078]
[1728371046545,0.26676,2437.3,2436.9,0.26679]
[1728371046748,1.48,2437.1,2437.0,3.2078]
[1728371046949,0.6317,2437.2,2437.1,0.26677]
[1728371047146,1.2436,2437.4,2437.0,3.2078]
[1728371047147,1.48,2437.3,2437.0,3.2078]
[1728371047356,1.48,2437.3,2437.2,0.26676]
[1728371047544,1.48,2437.3,2437.1,0.91067]
[1728371047751,0.6184,2437.4,2437.1,0.6439]
[1728371048060,2.0984,2437.4,2437.3,3.2078]
[1728371048351,2.36514,2437.4,2437.1,0.6439]
[1728371048652,1.48,2437.2,2437.1,0.6439]
[1728371049553,1.74676,2437.2,2437.0,3.2078]
[1728371049855,1.74676,2437.2,2437.1,0.26677]
[1728371049856,1.48,2437.2,2437.1,0.26677]
[1728371050048,1.48,2437.2,2437.0,3.47457]
[1728371050249,1.48,2437.2,2437.1,0.88627]
[1728371050848,1.48,2437.2,2437.0,3.2078]
[1728371052355,1.48,2437.2,2437.0,3.47458]
[1728371052561,1.74676,2437.2,2437.0,3.2078]
[1728371052758,0.6305,2437.1,2437.0,3.2078]
[1728371059959,0.89727,2437.1,2437.0,3.2078]
[1728371060158,0.6305,2437.1,2437.0,3.2078]
[1728371062954,1.56087,2437.1,2437.0,3.2078]
[1728371063164,1.2941,2437.1,2437.0,3.2078]
[1728371063866,1.56087,2437.1,2436.8,0.6439]
[1728371064057,1.48,2437.0,2436.8,0.6439]
[1728371064358,1.48,2437.0,2436.6,0.6062]
[1728371064359,0.26682,2436.7,2436.6,0.6062]
[1728371064569,1.48,2436.8,2436.5,0.6068]
[1728371064756,1.48,2436.6,2436.5,0.6068]
[1728371065063,1.74683,2436.6,2436.5,0.6068]
[1728371066465,1.48,2436.6,2436.5,0.6068]
[1728371066763,1.74683,2436.6,2436.5,0.6068]
[1728371067164,1.74683,2436.6,2436.4,1.24]
[1728371067165,1.48,2436.6,2436.4,1.24]
[1728371067462,1.48,2436.6,2436.1,0.096]
[1728371067463,0.26687,2436.3,2436.1,0.096]
[1728371067760,0.26687,2436.3,2435.9,5.0733]
[1728371067761,1.48,2436.2,2435.9,5.0733]
[1728371067966,0.6257,2436.5,2435.9,5.0733]
[1728371068166,0.89254,2436.5,2436.1,0.26688]
[1728371068357,1.48,2436.2,2436.1,0.26688]
[1728371068660,1.48,2436.2,2435.7,0.26692]
[1728371068962,1.3222,2436.7,2435.9,3.2078]
[1728371068963,0.66705,2436.7,2435.9,3.2078]
[1728371069261,0.26687,2436.3,2436.0,1.8597]
[1728371069465,1.48,2436.1,2436.0,1.8597]
[1728371069863,1.74688,2436.1,2435.6,3.47473]
[1728371070161,0.6456,2436.2,2435.7,0.6036]
[1728371070162,1.48,2435.8,2435.7,0.6036]
[1728371070664,1.48,2435.8,2435.6,4.4639]
[1728371070871,3.01922,2435.8,2435.6,4.4639]
[1728371071563,0.26693,2435.7,2435.6,4.4639]
[1728371072262,0.26693,2435.7,2435.6,3.8161]
[1728371072460,0.26693,2435.7,2435.6,3.2078]
[1728371072661,4.37253,2435.7,2435.6,3.2078]
[1728371072865,4.43643805,2435.7,2435.6,3.2078]
[1728371075666,0.33083805,2435.7,2435.6,3.2078]
[1728371075866,1.48,2435.7,2435.6,3.2078]
[1728371076767,1.48,2435.7,2435.6,8.24414]
[1728371077073,1.48,2435.9,2435.8,0.26691]
[1728371077871,1.48,2435.9,2435.8,4.1056]
[1728371078365,3.21,2435.9,2435.6,3.8716]
[1728371078673,3.21,2435.9,2435.6,4.13853]
[1728371078867,3.21,2435.9,2435.7,0.26692]
[1728371079570,3.21,2435.9,2435.8,0.26691]
[1728371080175,3.21,2436.0,2435.9,0.2669]
[1728371080380,3.21,2436.0,2435.9,4.1036]
[1728371080673,3.21,2436.2,2435.9,13.9415]
[1728371080869,3.21,2436.2,2435.9,3.8367]
[1728371081071,3.21,2436.2,2436.0,4.37169]
[1728371081470,3.21,2436.2,2436.1,4.99308]
[1728371081771,3.21,2436.4,2436.1,4.7262]
[1728371082072,3.21,2436.4,2436.3,3.2078]
[1728371082774,3.21,2436.4,2436.3,7.3126]
[1728371083172,3.47685,2436.4,2436.3,3.2078]
[1728371085065,3.21,2436.4,2436.3,3.2078]
[1728371085262,3.47685,2436.4,2436.3,3.2078]
[1728371085472,3.21,2436.4,2436.3,3.2078]
[1728371090481,3.47685,2436.4,2436.3,3.2078]
[1728371090775,3.21,2436.4,2436.3,3.2078]
[1728371092381,3.21,2436.4,2436.3,3.8377]
[1728371093579,3.21,2436.4,2436.3,8.20936]
[1728371093873,3.21,2436.6,2436.5,0.26684]
[1728371094079,3.21,2436.9,2436.7,0.26681]
[1728371094279,3.21,2436.9,2436.8,1.2677]
[1728371096176,3.21,2436.9,2436.8,1.5345]
[1728371096476,3.21,2437.1,2436.8,5.3717]
[1728371096782,3.21,2437.1,2437.0,3.47458]
[1728371097474,3.21,2437.3,2437.0,7.311]
[1728371097675,3.21,2437.3,2437.0,3.47458]
[1728371098777,3.21,2437.3,2437.0,3.2078]
[1728371098778,3.21,2437.1,2437.0,3.2078]
[1728371099175,3.47677,2437.1,2436.8,1.2677]
[1728371099383,3.21,2436.9,2436.8,1.2677]
[1728371099779,3.21,2436.9,2436.8,5.3717]
[1728371100482,3.47679,2436.9,2436.8,0.6378]
[1728371100788,3.21,2436.9,2436.8,0.6378]
[1728371101681,3.4768,2436.9,2436.7,3.2078]
[1728371101886,3.21,2436.9,2436.7,3.2078]
[1728371102083,0.2668,2436.8,2436.7,3.2078]
[1728371102378,1.4922,2436.8,2436.7,3.2078]
[1728371102585,1.2254,2436.8,2436.5,0.26684]
[1728371102782,3.21,2436.6,2436.5,0.26684]
[1728371103685,3.21,2436.6,2436.4,0.26685]
[1728371104678,3.21,2436.6,2436.5,0.26684]
[1728371105099,3.21,2436.6,2436.4,3.2078]
[1728371105286,3.21,2436.6,2436.4,3.47464]
[1728371106084,3.21,2436.6,2436.5,0.26684]
[1728371106284,3.21,2436.6,2436.4,3.2078]
[1728371106488,3.21,2436.6,2436.4,3.47464]
[1728371106682,3.21,2436.6,2436.4,3.2078]
[1728371106984,3.21,2436.6,2436.5,0.26684]
[1728371109286,3.824,2436.8,2436.5,4.37084]
[1728371109481,4.08969,2437.0,2436.7,3.2078]
[1728371109683,4.08969,2437.0,2436.8,1.2561]
[1728371109684,3.8229,2437.0,2436.8,1.2561]
[1728371109885,4.08969,2437.0,2436.8,1.2561]
[1728371110690,3.8229,2437.0,2436.8,1.2561]
[1728371110983,4.08968,2437.0,2436.8,1.2561]
[1728371111281,3.8229,2437.0,2436.8,1.2561]
[1728371112689,3.8229,2437.0,2436.8,1.9153]
[1728371114091,3.21,2437.0,2436.9,0.26679]
[1728371115592,3.21,2437.0,2436.8,2.1821]
[1728371116288,3.47679,2437.0,2436.7,3.2078]
[1728371116594,1.9205,2437.1,2436.4,1.9063]
[1728371116595,3.21,2436.8,2436.4,1.9063]
[1728371116894,3.21,2436.8,2436.6,3.47462]
[1728371117591,3.21,2436.8,2436.7,0.26682]
[1728371117792,3.21,2437.0,2436.7,4.104]
[1728371117989,3.21,2437.0,2436.8,2.1766]
[1728371118489,3.21,2437.0,2436.9,3.2078]
[1728371119086,3.21,2437.0,2436.9,7.57779]
[1728371119282,3.21,2437.0,2436.9,7.311]
[1728371119585,3.21,2437.0,2436.9,3.2078]
[1728371119586,3.47678,2437.0,2436.9,3.2078]
[1728371119785,3.47678,2437.0,2436.3,0.096]
[1728371119786,7.3132,2437.0,2436.5,3.2078]
[1728371120001,3.21,2436.7,2436.6,0.26683]
[1728371120293,3.21,2436.7,2436.5,3.2078]
[1728371120498,3.21,2436.7,2436.5,3.47463]
[1728371121288,3.21,2436.7,2436.5,3.2078]
[1728371121492,3.21,2436.7,2436.6,0.26683]
[1728371121995,3.21,2436.7,2436.5,3.2078]
[1728371122197,3.21,2436.7,2436.5,3.47463]
[1728371122386,3.21,2436.7,2436.5,3.2078]
[1728371122586,3.21,2436.7,2436.6,0.26683]
[1728371123597,3.21,2436.7,2436.5,3.47463]
[1728371124097,3.21,2436.7,2436.6,0.26683]
[1728371129493,3.21,2436.7,2436.5,3.47463]
[1728371129699,3.21,2436.7,2436.5,3.2078]
[1728371130211,3.21,2436.7,2436.2,3.2078]
[1728371130212,0.26686,2436.3,2436.2,3.2078]
[1728371130500,3.21,2436.3,2435.8,0.096]
[1728371130694,3.21,2436.3,2435.7,4.5601]
[1728371130695,3.21,2435.9,2435.7,3.2078]
[1728371130894,0.88331,2435.8,2435.7,3.2078]
[1728371131094,0.88331,2435.8,2435.3,5.5343]
[1728371131095,0.26696,2435.5,2435.3,0.096]
[1728371131301,3.21,2435.4,2435.1,0.26699]
[1728371131702,3.21,2435.2,2435.1,0.26699]
[1728371132103,3.21,2435.2,2435.1,4.37339]
[1728371132399,3.21,2435.2,2435.1,4.1064]
[1728371132795,3.21,2435.3,2435.2,0.26698]
[1728371133204,3.21,2435.3,2435.2,4.37338]
[1728371134705,3.21,2435.3,2435.2,4.1064]
[1728371135006,3.21,2435.3,2435.0,3.8604]
[1728371135007,3.21,2435.3,2435.1,0.26699]
[1728371135201,3.21,2435.3,2435.0,3.8604]
[1728371135405,3.21,2435.2,2435.0,3.8604]
[1728371135714,3.21,2435.2,2435.0,0.6526]
[1728371136012,3.21,2435.2,2435.0,0.91959]
[1728371136409,3.21,2435.2,2435.0,0.6526]
[1728371136703,3.21,2435.2,2434.8,1.2413]
[1728371136904,3.21,2435.0,2434.8,0.6363]
[1728371137999,3.21,2435.0,2434.8,0.90332]
[1728371139500,3.21,2435.0,2434.8,0.6363]
[1728371140010,3.21,2435.0,2434.8,0.90332]
[1728371140211,3.21,2435.2,2434.9,0.26701]
[1728371141304,3.21,2435.2,2435.0,0.267]
[1728371141505,3.21,2435.6,2435.1,0.26699]
[1728371141701,3.21,2435.6,2435.2,1.53817]
[1728371142309,3.47694,2435.6,2435.2,1.53817]
[1728371142618,3.21,2435.4,2435.2,1.2712]
[1728371143209,3.21,2435.4,2435.2,5.64457]
[1728371143410,3.21,2435.4,2435.2,1.53817]
[1728371144113,3.21,2435.4,2435.2,5.64457]
[1728371144314,3.21,2435.4,2435.2,1.53817]
[1728371144511,3.21,2435.4,2435.2,5.64457]
[1728371144712,3.21,2435.4,2435.2,0.6284]
[1728371149815,3.21,2435.4,2435.3,0.26697]
[1728371150310,3.21,2435.6,2435.4,0.26695]
[1728371151022,3.21,2435.6,2435.3,0.6335]
[1728371151319,3.21,2435.6,2435.4,0.6195]
[1728371151521,3.21,2435.6,2435.4,0.88645]
[1728371152615,3.21,2435.6,2435.5,0.26695]
[1728371152817,3.21,2435.8,2435.6,0.26693]
[1728371153118,3.21,2435.8,2435.7,0.6569]
[1728371154719,3.21,2435.8,2435.5,0.26694]
[1728371154923,3.21,2435.8,2435.5,0.92384]
[1728371155122,3.21,2435.8,2435.6,0.26693]
[1728371155927,3.21,2435.8,2435.5,0.6569]
[1728371156128,3.21,2435.8,2435.5,0.92384]
[1728371156314,3.21,2435.8,2435.6,0.26693]
[1728371156628,3.21,2435.8,2435.5,0.6569]
[1728371156819,3.21,2435.8,2435.5,0.92384]
[1728371157418,3.47692,2435.8,2435.5,0.92384]
[1728371157727,3.47692,2435.8,2435.5,0.6569]
[1728371157927,0.26693,2435.7,2435.5,0.6569]
[1728371158318,3.21,2435.6,2435.5,0.6569]
[1728371158520,0.26695,2435.5,2435.3,0.6335]
[1728371158728,3.21,2435.4,2435.3,0.6335]
[1728371159524,3.21,2435.4,2435.1,1.51049]
[1728371159525,3.47696,2435.4,2435.1,1.51049]
[1728371159732,3.21,2435.2,2435.1,1.51049]
[1728371160225,3.21,2435.2,2435.0,0.6088]
[1728371160631,0.26699,2435.1,2434.9,3.2078]
[1728371160929,0.26699,2435.1,2434.8,1.2748]
[1728371160930,3.21,2435.0,2434.8,1.2748]
[1728371161118,3.21,2435.0,2434.8,1.54182]
[1728371161527,3.21,2435.0,2434.8,1.2748]
[1728371161720,3.47701,2435.0,2434.8,1.2748]
[1728371162931,3.21,2435.0,2434.6,5.07284]
[1728371163130,0.6418,2435.1,2434.6,1.51594]
[1728371163131,3.21,2434.7,2434.6,1.51594]
[1728371163328,3.21,2434.7,2434.6,0.6401]
[1728371163727,3.21,2434.7,2434.5,3.2078]
[1728371163932,3.21,2434.6,2434.5,3.47485]
[1728371164141,3.21,2434.6,2434.5,0.26705]
[1728371165146,3.21,2434.6,2434.4,0.91136]
[1728371165352,3.21,2434.6,2434.4,0.6443]
[1728371165554,3.21,2434.6,2434.4,0.91136]
[1728371165947,3.21,2434.6,2434.4,0.6443]
[1728371166150,3.21,2434.6,2434.5,0.26706]
[1728371167155,3.21,2434.6,2434.4,0.91136]
[1728371167650,3.21,2434.6,2434.5,0.26706]
[1728371167963,3.21,2434.7,2434.6,0.26705]
[1728371168160,4.5033,2435.1,2434.6,0.26705]
[1728371168161,3.21,2434.9,2434.6,0.26705]
[1728371168354,3.47702,2434.9,2434.6,0.26705]
[1728371168554,3.21,2434.7,2434.5,0.26705]
[1728371168755,3.21,2434.7,2434.5,0.26706]
[1728371169150,3.47705,2434.6,2434.4,0.6443]
[1728371170051,3.21,2434.6,2434.4,0.91136]
[1728371172952,3.21,2434.7,2434.4,0.6443]
[1728371173151,3.21,2434.7,2434.6,0.26704]
[1728371176052,3.21,2434.7,2434.5,0.26705]
[1728371176248,3.21,2434.6,2434.5,0.26705]
[1728371176463,3.21,2434.6,2434.4,0.6443]
[1728371176661,3.47705,2434.6,2434.4,0.6443]
[1728371176960,3.47705,2434.6,2434.3,3.8479]
[1728371177155,3.21,2434.4,2434.3,3.8479]
[1728371177751,3.21,2434.4,2434.3,4.11498]
[1728371178362,3.21,2434.4,2434.3,3.8479]
[1728371179561,3.21,2434.4,2434.3,4.11498]
[1728371181557,1.410347,2434.7,2434.3,3.8479]
[1728371181558,3.21,2434.5,2434.3,3.8479]
[1728371181763,3.21,2434.5,2434.4,0.26707]
[1728371184255,3.21,2434.5,2434.3,4.11497]
[1728371184558,3.21,2434.5,2434.4,0.26707]
[1728371186069,3.21,2434.5,2434.3,3.8479]
[1728371186268,3.21,2434.5,2434.4,0.26707]
[1728371186464,3.21,2434.5,2434.3,0.6401]
[1728371186766,0.26707,2434.4,2434.3,0.6401]
[1728371187567,3.21,2434.5,2434.3,0.6401]
[1728371187568,3.47706,2434.5,2434.3,0.6401]
[1728371188069,0.26707,2434.4,2434.3,0.6401]
[1728371188260,0.26708,2434.3,2434.1,0.6275]
[1728371188462,3.21,2434.2,2434.1,0.6275]
[1728371189762,7.58509,2434.2,2433.9,0.6232]
[1728371190067,3.21,2434.0,2433.9,0.6232]
[1728371190372,3.21,2434.0,2433.9,0.89032]
[1728371190957,3.21,2434.0,2433.8,0.6123]
[1728371192470,3.47711,2434.0,2433.8,0.6123]
[1728371193265,0.26712,2433.9,2433.8,0.6123]
[1728371193577,3.47712,2434.0,2433.8,0.6123]
[1728371193870,3.47712,2434.0,2433.7,1.2675]
[1728371193871,0.26712,2433.9,2433.7,1.2675]
[1728371194068,3.21,2433.8,2433.7,1.2675]
[1728371194460,3.21,2433.8,2433.7,0.6067]
[1728371197469,3.47713,2433.8,2433.7,0.6067]
[1728371197773,3.21,2433.8,2433.5,0.6532]
[1728371197974,3.21,2433.6,2433.5,0.92036]
[1728371198884,3.21,2433.6,2433.5,0.6532]
[1728371199185,3.21,2433.6,2433.5,0.92037]
[1728371199477,3.21,2433.6,2433.5,0.6532]
[1728371200175,3.47716,2433.6,2433.5,0.6532]
[1728371201171,3.21,2433.6,2433.5,0.6532]
[1728371201973,3.47716,2433.6,2433.5,0.6532]
[1728371202168,3.47716,2433.6,2433.4,1.2389]
[1728371202367,0.26717,2433.5,2433.4,1.2389]
[1728371202573,3.47716,2433.6,2433.4,1.2389]
[1728371203865,3.21,2433.6,2433.4,1.2389]
[1728371204074,3.47716,2433.6,2433.4,1.2389]
[1728371204674,0.26717,2433.5,2433.4,1.2389]
[1728371205171,3.21,2433.6,2433.4,1.2389]
[1728371205378,3.47716,2433.6,2433.4,1.2389]
[1728371205879,0.26717,2433.5,2433.4,1.2389]
[1728371206476,3.37206853,2433.6,2433.4,1.2389]
[1728371206981,0.26717,2433.5,2433.4,1.2389]
[1728371207574,0.26717,2433.5,2432.9,0.096]
[1728371207575,0.26721,2433.1,2432.9,0.096]
[1728371207772,3.21,2433.0,2432.7,0.36325]
[1728371207977,3.21,2433.0,2432.5,1.8885]
[1728371208176,3.21,2433.0,2432.8,0.26724]
[1728371208477,3.21,2433.0,2432.9,2.19283]
[1728371210179,3.21,2433.2,2432.9,6.036]
[1728371210483,3.21,2433.4,2433.0,3.2078]
[1728371210677,3.21,2433.4,2433.2,0.2672]
[1728371210883,3.21,2433.4,2433.3,1.278]
[1728371211080,3.21,2433.4,2433.3,1.9402]
[1728371212981,7.3196,2433.4,2433.0,3.2078]
[1728371213189,0.26723,2433.0,2432.8,0.096]
[1728371213378,0.26723,2433.0,2432.9,0.6343]
[1728371213579,3.47723,2433.0,2432.9,0.6343]
[1728371214082,3.21,2433.0,2432.9,0.6343]
[1728371215390,3.47722,2433.0,2432.9,0.6343]
[1728371217485,3.47722,2433.0,2432.6,3.2078]
[1728371217486,3.21,2433.0,2432.6,3.2078]
[1728371217691,3.21,2432.7,2432.4,0.096]
[1728371217992,0.26727,2432.6,2432.5,1.2663]
[1728371218992,3.47727,2432.6,2432.5,1.2663]
[1728371219991,3.21,2432.6,2432.5,1.2663]
[1728371220187,3.2078,2433.1,2432.5,11.3775]
[1728371220188,3.21,2432.8,2432.5,11.3775]
[1728371220383,3.21,2433.0,2432.6,3.2078]
[1728371220583,3.21,2433.0,2432.8,0.26724]
[1728371220783,3.21,2433.0,2432.9,0.6323]
[1728371221087,3.21,2433.0,2432.9,1.2387]
[1728371221088,3.47722,2433.0,2432.9,1.2387]
[1728371221492,0.26724,2432.8,2432.7,0.6323]
[1728371221692,3.47724,2432.8,2432.7,0.6323]
[1728371221914,7.3204,2432.8,2432.4,0.096]
[1728371222201,0.66809,2432.9,2432.3,3.2078]
[1728371222202,0.26729,2432.4,2432.3,3.2078]
[1728371222389,3.47729,2432.4,2432.3,3.2078]
[1728371222699,3.21,2432.4,2432.3,3.2078]
[1728371223694,3.47729,2432.4,2432.3,3.2078]
[1728371224400,0.26732,2432.1,2432.0,1.871]
[1728371226088,0.26732,2432.1,2432.0,1.2387]
[1728371226392,4.112,2432.1,2431.5,0.096]
[1728371226597,3.21,2431.7,2431.4,2.15169]
[1728371226791,0.26736,2431.8,2431.4,2.15169]
[1728371226792,3.21,2431.5,2431.4,2.15169]
[1728371227292,3.21,2431.5,2431.4,1.8843]
[1728371227687,3.21,2431.5,2431.4,0.6035]
[1728371229183,3.21,2431.5,2431.4,0.8709]
[1728371229389,3.21,2431.5,2431.4,0.6035]
[1728371230891,3.21,2431.5,2431.4,0.8709]
[1728371231193,3.21,2431.5,2431.4,0.6035]
[1728371232196,3.21,2431.5,2431.4,0.8709]
[1728371232398,3.21,2431.5,2431.4,4.9837]
[1728371232900,3.21,2431.9,2431.4,10.7163]
[1728371233095,3.21,2431.9,2431.8,0.26735]
[1728371233292,3.21,2431.9,2431.8,4.37935]
[1728371234188,3.21,2431.9,2431.6,0.6331]
[1728371234389,3.21,2431.9,2431.8,0.26735]
[1728371234808,3.21,2431.9,2431.7,0.26736]
[1728371235103,3.21,2431.8,2431.7,0.26736]
[1728371235402,3.21,2431.8,2431.7,4.37936]
[1728371236001,3.21,2432.0,2431.7,4.112]
[1728371236199,3.21,2432.0,2431.8,0.26735]
[1728371236405,3.21,2432.0,2431.9,0.6232]
[1728371236699,3.47733,2432.0,2431.9,1.264]
[1728371237603,7.322,2432.0,2431.6,0.6331]
[1728371237807,3.21,2431.7,2431.6,0.6331]
[1728371238201,3.21,2431.7,2431.4,1.264]
[1728371238202,0.26738,2431.6,2431.4,1.264]
[1728371238399,3.21,2431.5,2431.4,1.264]
[1728371240304,3.21,2431.5,2431.4,1.5314]
[1728371240605,3.21,2431.6,2431.5,0.26738]
[1728371240902,3.21,2431.9,2431.4,1.264]
[1728371241103,3.21,2431.9,2431.8,0.26735]
[1728371241804,3.21,2431.9,2431.7,0.26736]
[1728371242000,3.21,2431.9,2431.4,1.264]
[1728371242001,3.21,2431.9,2431.8,1.3056]
[1728371242999,3.21,2431.9,2431.8,0.6644]
[1728371243194,3.21,2431.9,2431.5,0.6412]
[1728371243395,3.21,2431.7,2431.5,1.3056]
[1728371244604,3.47737,2431.7,2431.5,1.3056]
[1728371245308,3.21,2431.7,2431.5,1.3056]
[1728371245901,3.47737,2431.7,2431.5,1.3056]
[1728371246204,3.21,2431.7,2431.5,1.3056]
[1728371246595,3.47736,2431.7,2431.5,1.3056]
[1728371247402,0.26738,2431.6,2431.5,1.3056]
[1728371248002,0.26738,2431.6,2431.4,0.6232]
[1728371248199,3.21,2431.5,2431.3,1.2883]
[1728371248405,0.2674,2431.4,2431.3,1.2883]
[1728371250202,3.21,2431.5,2431.1,0.6452]
[1728371250400,3.21,2431.2,2431.1,0.6452]
[1728371253207,0.26744,2431.0,2430.9,1.2751]
[1728371253403,3.21,2431.0,2430.6,0.096]
[1728371253601,3.21,2430.8,2430.5,2.1917]
[1728371253906,3.21,2430.6,2430.5,2.1917]
[1728371260108,3.21,2430.8,2430.7,0.26747]
[1728371260720,3.21,2430.9,2430.5,1.9242]
[1728371260918,3.21,2430.9,2430.8,0.26746]
[1728371262614,3.21,2431.1,2430.8,4.1136]
[1728371262916,3.21,2431.4,2431.3,0.26741]
[1728371263214,3.114,2431.4,2431.0,0.6626]
[1728371263413,3.114,2431.4,2431.2,0.26741]
[1728371263609,3.114,2431.4,2431.0,0.6626]
[1728371263814,3.114,2431.4,2431.2,0.26741]
[1728371265519,3.114,2431.4,2431.1,0.26742]
[1728371265719,3.114,2431.4,2431.1,0.26743]
[1728371266022,3.114,2431.4,2431.2,0.26742]
[1728371266412,3.114,2431.4,2431.1,0.26743]
[1728371266615,3.114,2431.4,2431.2,0.26741]
[1728371267221,3.114,2431.4,2431.0,0.6626]
[1728371267222,0.26743,2431.2,2431.0,0.6626]
[1728371267413,3.47743,2431.1,2431.0,0.6626]
[1728371267620,3.21,2431.1,2431.0,0.6626]
[1728371268316,3.47743,2431.1,2431.0,0.6626]
[1728371268718,0.26745,2431.0,2430.7,0.36347]
[1728371268914,3.21,2430.9,2430.7,0.26747]
[1728371269117,3.47745,2430.9,2430.6,0.90048]
[1728371269319,3.21,2430.9,2430.7,0.26747]
[1728371269718,3.21,2430.9,2430.8,0.26746]
[1728371270728,3.21,2430.9,2430.6,0.633]
[1728371270917,3.21,2430.7,2430.6,0.26749]
[1728371271122,3.21,2430.7,2430.5,0.92309]
[1728371271429,3.21,2430.7,2430.6,0.26749]
[1728371272016,3.21,2430.7,2430.3,0.6413]
[1728371272222,3.21,2430.7,2430.4,0.2675]
[1728371272827,3.21,2430.7,2430.3,0.6413]
[1728371273023,3.21,2430.9,2430.6,0.26749]
[1728371273230,3.47745,2430.9,2430.7,0.6156]
[1728371273427,3.21,2430.9,2430.7,0.6156]
[1728371273730,3.47745,2430.9,2430.7,0.6156]
[1728371274024,3.47745,2430.9,2430.6,0.26748]
[1728371274025,3.21,2430.9,2430.6,0.26748]
[1728371274335,3.21,2430.9,2430.6,0.88308]
[1728371274718,3.21,2430.9,2430.6,0.6156]
[1728371275122,3.47746,2430.9,2430.6,0.6156]
[1728371275933,3.21,2430.9,2430.6,0.6156]
[1728371276229,3.47746,2430.9,2430.6,0.6156]
[1728371276429,3.21,2430.9,2430.6,0.6156]
[1728371276631,3.21,2430.9,2430.6,0.88308]
[1728371276932,3.2078,2431.1,2430.6,0.6156]
[1728371276933,6.4178,2431.1,2430.6,0.6156]
[1728371277233,3.21,2430.9,2430.6,0.6156]
[1728371277424,3.21,2430.9,2430.6,0.88308]
[1728371277931,3.47745,2430.9,2430.6,0.6156]
[1728371278232,3.21,2430.9,2430.6,0.6156]
[1728371278729,3.21,2430.7,2430.4,0.2675]
[1728371279030,3.21,2430.7,2430.5,0.26749]
[1728371281139,3.8485,2430.8,2430.6,0.657]
[1728371281748,3.8485,2430.8,2430.6,0.92448]
[1728371282155,3.2078,2430.8,2430.6,0.92449]
[1728371282854,3.21,2430.9,2430.7,0.26747]
[1728371283160,3.21,2430.9,2430.6,0.92448]
[1728371283652,3.47745,2430.9,2430.6,0.92448]
[1728371283853,3.21,2430.9,2430.6,0.657]
[1728371284159,3.21,2430.9,2430.6,0.92448]
[1728371284959,3.21,2430.9,2430.6,0.657]
[1728371285159,3.21,2430.9,2430.6,3.8648]
[1728371285463,4.4551,2431.6,2430.8,3.21]
[1728371285762,3.8184,2431.6,2431.3,0.2674]
[1728371285963,3.2078,2431.8,2431.4,0.6333]
[1728371285964,3.21,2431.8,2431.4,0.6333]
[1728371286159,3.8805,2432.0,2431.4,0.6333]
[1728371286454,0.26736,2431.7,2431.5,1.2784]
[1728371286646,3.47736,2431.8,2431.5,1.2784]
[1728371287062,3.2078,2431.6,2431.1,0.096]
[1728371287245,3.21,2431.2,2431.0,1.54224]
[1728371288159,3.21,2431.2,2431.0,1.2748]
[1728371288358,3.21,2431.2,2431.1,0.26743]
[1728371288539,3.21,2431.3,2431.1,0.26743]
[1728371288838,3.21,2431.3,2431.0,1.54224]
[1728371289230,3.21,2431.1,2431.0,1.2748]
[1728371289430,3.21,2431.1,2431.0,0.6535]
[1728371290128,3.21,2431.1,2431.0,0.92094]
[1728371290329,3.21,2431.1,2431.0,0.6535]
[1728371292141,3.21,2431.3,2431.0,0.92094]
[1728371292341,3.21,2431.3,2431.1,0.26743]
[1728371292540,3.47741,2431.3,2431.0,0.92094]
[1728371292939,0.26743,2431.2,2430.9,0.6467]
[1728371293142,0.90673,2431.2,2430.9,0.6467]
[1728371293335,3.8489,2431.1,2430.9,0.6467]
[1728371293640,4.11633,2431.1,2430.8,0.617]